[Event "FIDE World Rapid Chess Championship 2021"]
[White "Jakubowski, Krzysztof"]
[Black "Vakhidov, Jakhongir"]
[WhiteFideId "1112848"]
[BlackFideId "14201801"]
[WhiteElo "2399"]
[BlackElo "2566"]
[Result "0-1"]
[Round "10"]
[TimeControl "900+10"]
[Date "2021.12.28"]
[WhiteClock "0:00:24"]
[BlackClock "0:01:42"]

1. e4 {[%clk 0:15:00]}  c5 {[%clk 0:15:00]} 2. c3 {[%clk 0:15:00]}  d5 {[%clk 0:14:53]} 3. exd5 {[%clk 0:15:29]}  Qxd5 {[%clk 0:14:53]} 4. Nf3 {[%clk 0:15:29]}  g6 {[%clk 0:14:53]} 5. d4 {[%clk 0:15:29]}  Bg7 {[%clk 0:14:53]} 6. Nbd2 {[%clk 0:15:29]}  cxd4 {[%clk 0:14:53]} 7. Bc4 {[%clk 0:15:29]}  Qa5 {[%clk 0:14:53]} 8. cxd4 {[%clk 0:12:49]}  Nf6 {[%clk 0:11:46]} 9. Ne5 {[%clk 0:12:49]}  O-O {[%clk 0:11:46]} 10. O-O {[%clk 0:12:49]}  Nc6 {[%clk 0:11:46]} 11. Nb3 {[%clk 0:12:49]}  Qc7 {[%clk 0:10:17]} 12. Qe2 {[%clk 0:11:34]}  e6 {[%clk 0:10:17]} 13. Bd2 {[%clk 0:11:34]}  Nd5 {[%clk 0:09:06]} 14. f4 {[%clk 0:08:09]}  Qb6 {[%clk 0:08:02]} 15. Qf2 {[%clk 0:06:10]}  Rd8 {[%clk 0:05:10]} 16. Rac1 {[%clk 0:05:57]}  Nf6 {[%clk 0:02:50]} 17. Be3 {[%clk 0:05:51]}  Nd5 {[%clk 0:02:50]} 18. Bd2 {[%clk 0:05:51]}  a5 {[%clk 0:02:50]} 19. a4 {[%clk 0:05:51]}  Nce7 {[%clk 0:02:50]} 20. Bb5 {[%clk 0:03:53]}  Nf5 {[%clk 0:02:45]} 21. Kh1 {[%clk 0:02:04]}  Nd6 {[%clk 0:02:26]} 22. Nc4 {[%clk 0:02:04]}  Nxc4 {[%clk 0:02:26]} 23. Rxc4 {[%clk 0:02:04]}  Nc7 {[%clk 0:02:26]} 24. Qh4 {[%clk 0:00:28]}  Nxb5 {[%clk 0:01:49]} 25. axb5 {[%clk 0:00:28]}  Bd7 {[%clk 0:01:49]} 26. Rfc1 {[%clk 0:00:28]}  Bxb5 {[%clk 0:01:49]} 27. Rc7 {[%clk 0:00:28]}  Bc6 {[%clk 0:01:49]} 28. Qe7 {[%clk 0:00:24]}  Rf8 {[%clk 0:01:42]} 29. Nxa5 {[%clk 0:00:24]}  Rxa5 {[%clk 0:01:42]} 30. Bxa5 {[%clk 0:00:24]}  Qxa5 {[%clk 0:01:42]} 0-1


[Site "http://www.Chess.com"]

[Event "FIDE World Rapid Chess Championship 2021"]
[White "Vokhidov, Shamsiddin"]
[Black "Sychev, Klementy"]
[WhiteFideId "14204223"]
[BlackFideId "4114060"]
[WhiteElo "2546"]
[BlackElo "2461"]
[Result "1/2-1/2"]
[Round "10"]
[TimeControl "900+10"]
[Date "2021.12.28"]
[WhiteClock "0:00:49"]
[BlackClock "0:01:32"]

1. e4 {[%clk 0:15:00]}  e5 {[%clk 0:15:00]} 2. Nf3 {[%clk 0:15:00]}  Nc6 {[%clk 0:15:00]} 3. Bb5 {[%clk 0:15:00]}  a6 {[%clk 0:15:20]} 4. Ba4 {[%clk 0:15:55]}  Nf6 {[%clk 0:15:20]} 5. O-O {[%clk 0:15:55]}  Bc5 {[%clk 0:15:20]} 6. c3 {[%clk 0:15:55]}  b5 {[%clk 0:15:20]} 7. Bc2 {[%clk 0:15:55]}  d5 {[%clk 0:15:20]} 8. d4 {[%clk 0:15:55]}  dxe4 {[%clk 0:15:20]} 9. Nbd2 {[%clk 0:13:57]}  exf3 {[%clk 0:15:02]} 10. Qxf3 {[%clk 0:13:57]}  Bb7 {[%clk 0:15:02]} 11. dxc5 {[%clk 0:13:57]}  Nd4 {[%clk 0:15:02]} 12. Qxb7 {[%clk 0:13:57]}  Rb8 {[%clk 0:15:02]} 13. Qxa6 {[%clk 0:13:57]}  Ra8 {[%clk 0:15:02]} 14. Qb7 {[%clk 0:12:25]}  Rb8 {[%clk 0:15:10]} 15. Qxb8 {[%clk 0:07:28]}  Ne2+ {[%clk 0:15:36]} 16. Kh1 {[%clk 0:07:28]}  Qxb8 {[%clk 0:15:36]} 17. Re1 {[%clk 0:07:28]}  Nxc1 {[%clk 0:15:36]} 18. Rxe5+ {[%clk 0:07:28]}  Kd7 {[%clk 0:15:36]} 19. Rxc1 {[%clk 0:07:46]}  Re8 {[%clk 0:14:01]} 20. Nf3 {[%clk 0:07:46]}  Rxe5 {[%clk 0:14:01]} 21. Nxe5+ {[%clk 0:07:45]}  Ke8 {[%clk 0:14:01]} 22. Bb3 {[%clk 0:07:45]}  Qa7 {[%clk 0:12:54]} 23. Bxf7+ {[%clk 0:07:35]}  Kf8 {[%clk 0:12:54]} 24. b4 {[%clk 0:05:49]}  Nd7 {[%clk 0:11:21]} 25. Nxd7+ {[%clk 0:05:49]}  Kxf7 {[%clk 0:11:21]} 26. Ne5+ {[%clk 0:05:03]}  Kf6 {[%clk 0:10:19]} 27. Ng4+ {[%clk 0:04:06]}  Kg5 {[%clk 0:08:04]} 28. h3 {[%clk 0:04:06]}  Qxa2 {[%clk 0:07:56]} 29. Rf1 {[%clk 0:01:43]}  Qd2 {[%clk 0:07:56]} 30. f4+ {[%clk 0:01:43]}  Kf5 {[%clk 0:06:35]} 31. Rf3 {[%clk 0:01:57]}  h5 {[%clk 0:06:35]} 32. Nf2 {[%clk 0:01:57]}  h4 {[%clk 0:06:35]} 33. Kh2 {[%clk 0:01:10]}  Qe1 {[%clk 0:03:39]} 34. Ng4 {[%clk 0:01:10]}  Qd2 {[%clk 0:03:39]} 35. Ne3+ {[%clk 0:01:10]}  Ke4 {[%clk 0:03:39]} 36. Ng4 {[%clk 0:00:39]}  Kf5 {[%clk 0:03:08]} 37. Ne5 {[%clk 0:00:39]}  Qd5 {[%clk 0:01:18]} 38. Rf2 {[%clk 0:00:45]}  Qe4 {[%clk 0:01:18]} 39. Rf3 {[%clk 0:00:45]}  Qd5 {[%clk 0:01:18]} 40. Nd3 {[%clk 0:00:45]}  Qe4 {[%clk 0:01:18]} 41. Nf2 {[%clk 0:00:45]}  Qd5 {[%clk 0:01:18]} 42. Ng4 {[%clk 0:00:45]}  Qd2 {[%clk 0:01:18]} 43. Nf2 {[%clk 0:00:49]}  Qd5 {[%clk 0:01:32]} 44. Kg1 {[%clk 0:00:49]}  Qd2 {[%clk 0:01:32]} 45. Ng4 {[%clk 0:00:49]}  Qc1+ {[%clk 0:01:32]} 46. Kh2 {[%clk 0:00:49]}  Qd2 {[%clk 0:01:32]} 47. Ne5 {[%clk 0:00:49]}  Qd5 {[%clk 0:01:32]} 48. Rf1 {[%clk 0:00:49]}  Qd2 {[%clk 0:01:32]} 49. Rf3 {[%clk 0:00:49]} 1/2-1/2


[Site "http://www.Chess.com"]

[Event "FIDE World Rapid Chess Championship 2021"]
[White "Zvjaginsev, Vadim"]
[Black "Faizrakhmanov, Ramil"]
[WhiteFideId "4113403"]
[BlackFideId "24103209"]
[WhiteElo "2539"]
[BlackElo "2461"]
[Result "1/2-1/2"]
[Round "10"]
[TimeControl "900+10"]
[Date "2021.12.28"]
[WhiteClock "0:00:19"]
[BlackClock "0:00:18"]

1. e4 {[%clk 0:15:00]}  c6 {[%clk 0:15:00]} 2. Nc3 {[%clk 0:15:00]}  d5 {[%clk 0:15:00]} 3. Qe2 {[%clk 0:15:00]}  d4 {[%clk 0:15:00]} 4. Nb1 {[%clk 0:16:02]}  e5 {[%clk 0:14:19]} 5. d3 {[%clk 0:16:02]}  Bd6 {[%clk 0:14:19]} 6. g3 {[%clk 0:16:02]}  c5 {[%clk 0:14:19]} 7. h4 {[%clk 0:16:02]}  Nc6 {[%clk 0:14:19]} 8. Bh3 {[%clk 0:16:02]}  Nge7 {[%clk 0:14:19]} 9. Kf1 {[%clk 0:16:02]}  O-O {[%clk 0:14:19]} 10. Kg2 {[%clk 0:16:02]}  b5 {[%clk 0:12:37]} 11. Nf3 {[%clk 0:15:21]}  Bxh3+ {[%clk 0:12:37]} 12. Rxh3 {[%clk 0:15:21]}  Rc8 {[%clk 0:12:37]} 13. a4 {[%clk 0:15:21]}  a6 {[%clk 0:12:37]} 14. Nbd2 {[%clk 0:14:13]}  Bb8 {[%clk 0:12:28]} 15. b3 {[%clk 0:11:24]}  Nb4 {[%clk 0:11:40]} 16. Qd1 {[%clk 0:11:24]}  Qd7 {[%clk 0:11:40]} 17. Ba3 {[%clk 0:10:07]}  f5 {[%clk 0:10:51]} 18. axb5 {[%clk 0:10:07]}  axb5 {[%clk 0:10:51]} 19. Bxb4 {[%clk 0:10:07]}  cxb4 {[%clk 0:10:51]} 20. exf5 {[%clk 0:10:07]}  Qxf5 {[%clk 0:10:51]} 21. Ne4 {[%clk 0:09:28]}  Nd5 {[%clk 0:09:36]} 22. h5 {[%clk 0:07:01]}  Nc3 {[%clk 0:09:26]} 23. Nxc3 {[%clk 0:06:59]}  Rxc3 {[%clk 0:06:59]} 24. Rh4 {[%clk 0:06:59]}  Rc7 {[%clk 0:06:59]} 25. g4 {[%clk 0:06:59]}  Qf4 {[%clk 0:06:59]} 26. g5 {[%clk 0:06:59]}  Qf5 {[%clk 0:06:59]} 27. Rh3 {[%clk 0:05:58]}  Qg4+ {[%clk 0:06:19]} 28. Rg3 {[%clk 0:05:58]}  Qxh5 {[%clk 0:05:27]} 29. Qe2 {[%clk 0:04:03]}  e4 {[%clk 0:05:27]} 30. Qxe4 {[%clk 0:02:50]}  Rxc2 {[%clk 0:04:38]} 31. Qe6+ {[%clk 0:02:50]}  Qf7 {[%clk 0:04:38]} 32. Qxf7+ {[%clk 0:02:50]}  Rxf7 {[%clk 0:04:38]} 33. Rg4 {[%clk 0:02:50]}  Rf4 {[%clk 0:02:50]} 34. Rxf4 {[%clk 0:02:49]}  Bxf4 {[%clk 0:02:50]} 35. Nxd4 {[%clk 0:02:49]}  Rd2 {[%clk 0:02:50]} 36. Ne6 {[%clk 0:01:29]}  Be5 {[%clk 0:02:45]} 37. Re1 {[%clk 0:00:21]}  Bc3 {[%clk 0:01:00]} 38. Re3 {[%clk 0:00:21]}  Kf7 {[%clk 0:01:00]} 39. Nc7 {[%clk 0:00:21]}  Kg6 {[%clk 0:01:00]} 40. Nxb5 {[%clk 0:00:21]}  Kxg5 {[%clk 0:01:00]} 41. Kg3 {[%clk 0:00:21]}  Rd1 {[%clk 0:01:00]} 42. f4+ {[%clk 0:00:21]}  Kf6 {[%clk 0:01:07]} 43. Kf3 {[%clk 0:00:36]}  h5 {[%clk 0:01:07]} 44. Ke4 {[%clk 0:00:36]}  Re1 {[%clk 0:01:07]} 45. Rxe1 {[%clk 0:00:36]}  Bxe1 {[%clk 0:01:07]} 46. Kf3 {[%clk 0:00:36]}  Bd2 {[%clk 0:01:07]} 47. Nd6 {[%clk 0:00:36]}  Ke6 {[%clk 0:01:07]} 48. Nc4 {[%clk 0:00:36]}  Bc1 {[%clk 0:00:39]} 49. Ke4 {[%clk 0:00:34]}  h4 {[%clk 0:00:39]} 50. Ne5 {[%clk 0:00:34]}  h3 {[%clk 0:00:39]} 51. Ng4 {[%clk 0:00:34]}  Bd2 {[%clk 0:00:39]} 52. f5+ {[%clk 0:00:34]}  Kd6 {[%clk 0:00:39]} 53. d4 {[%clk 0:00:34]}  Be1 {[%clk 0:00:39]} 54. Kf3 {[%clk 0:00:34]}  Bh4 {[%clk 0:00:39]} 55. Ne3 {[%clk 0:00:34]}  Bg5 {[%clk 0:00:39]} 56. Nc2 {[%clk 0:00:34]}  Bd2 {[%clk 0:00:39]} 57. Kg3 {[%clk 0:00:34]}  Kd5 {[%clk 0:00:39]} 58. Kxh3 {[%clk 0:00:34]}  Ke4 {[%clk 0:00:39]} 59. Kg4 {[%clk 0:00:34]}  Kd3 {[%clk 0:00:39]} 60. Nxb4+ {[%clk 0:00:34]}  Bxb4 {[%clk 0:00:39]} 61. Kg5 {[%clk 0:00:34]}  Kxd4 {[%clk 0:00:39]} 62. Kg6 {[%clk 0:00:19]}  Ke5 {[%clk 0:00:18]} 1/2-1/2


[Site "http://www.Chess.com"]

[Event "FIDE World Rapid Chess Championship 2021"]
[White "Donchenko, Alexander"]
[Black "Heberla, Bartlomiej"]
[WhiteFideId "24603295"]
[BlackFideId "1115120"]
[WhiteElo "2535"]
[BlackElo "2437"]
[Result "1-0"]
[Round "10"]
[TimeControl "900+10"]
[Date "2021.12.28"]
[WhiteClock "0:01:14"]
[BlackClock "0:00:53"]

1. Nf3 {[%clk 0:15:00]}  d5 {[%clk 0:15:00]} 2. g3 {[%clk 0:15:00]}  Nf6 {[%clk 0:15:00]} 3. Bg2 {[%clk 0:15:00]}  e6 {[%clk 0:15:00]} 4. c4 {[%clk 0:15:00]}  d4 {[%clk 0:15:33]} 5. d3 {[%clk 0:14:41]}  Nc6 {[%clk 0:15:33]} 6. Nbd2 {[%clk 0:14:41]}  e5 {[%clk 0:13:36]} 7. O-O {[%clk 0:10:31]}  a5 {[%clk 0:13:36]} 8. a4 {[%clk 0:10:31]}  Bb4 {[%clk 0:11:51]} 9. Nb3 {[%clk 0:10:29]}  O-O {[%clk 0:11:51]} 10. e3 {[%clk 0:10:29]}  dxe3 {[%clk 0:11:51]} 11. Bxe3 {[%clk 0:10:29]}  Re8 {[%clk 0:11:51]} 12. d4 {[%clk 0:10:29]}  exd4 {[%clk 0:09:33]} 13. Nbxd4 {[%clk 0:10:29]}  Nxd4 {[%clk 0:09:33]} 14. Nxd4 {[%clk 0:10:29]}  c6 {[%clk 0:09:33]} 15. Nc2 {[%clk 0:07:45]}  Qxd1 {[%clk 0:09:45]} 16. Raxd1 {[%clk 0:07:45]}  Bg4 {[%clk 0:09:45]} 17. Ra1 {[%clk 0:07:45]}  Bd6 {[%clk 0:08:36]} 18. Rfe1 {[%clk 0:06:22]}  Bf5 {[%clk 0:08:36]} 19. Nd4 {[%clk 0:06:14]}  Bd3 {[%clk 0:08:36]} 20. b3 {[%clk 0:06:14]}  Bb4 {[%clk 0:08:36]} 21. Red1 {[%clk 0:06:14]}  Bg6 {[%clk 0:08:36]} 22. Bd2 {[%clk 0:06:14]}  Bh5 {[%clk 0:05:19]} 23. Nf3 {[%clk 0:05:34]}  Bxd2 {[%clk 0:05:19]} 24. Rxd2 {[%clk 0:05:34]}  Ne4 {[%clk 0:05:19]} 25. Rb2 {[%clk 0:04:27]}  Nc5 {[%clk 0:04:01]} 26. Re1 {[%clk 0:02:00]}  Rxe1+ {[%clk 0:03:45]} 27. Nxe1 {[%clk 0:02:00]}  Rd8 {[%clk 0:03:45]} 28. Bf3 {[%clk 0:02:00]}  Bg6 {[%clk 0:03:45]} 29. Kf1 {[%clk 0:02:00]}  Re8 {[%clk 0:03:45]} 30. Be2 {[%clk 0:02:00]}  Bf5 {[%clk 0:02:09]} 31. g4 {[%clk 0:02:06]}  Bg6 {[%clk 0:02:09]} 32. h4 {[%clk 0:02:06]}  h6 {[%clk 0:02:09]} 33. Ng2 {[%clk 0:02:06]}  Re4 {[%clk 0:00:51]} 34. Rd2 {[%clk 0:02:01]}  Kf8 {[%clk 0:00:18]} 35. Bd1 {[%clk 0:01:47]}  Ke8 {[%clk 0:00:18]} 36. h5 {[%clk 0:01:47]}  Bh7 {[%clk 0:00:18]} 37. Bc2 {[%clk 0:01:47]}  Rxg4 {[%clk 0:00:18]} 38. Bxh7 {[%clk 0:01:47]}  Nxb3 {[%clk 0:00:18]} 39. Re2+ {[%clk 0:01:47]}  Kf8 {[%clk 0:00:18]} 40. Ne3 {[%clk 0:01:47]}  Rg5 {[%clk 0:00:18]} 41. Bc2 {[%clk 0:01:47]}  Nc5 {[%clk 0:00:18]} 42. Nf5 {[%clk 0:01:47]}  Rxh5 {[%clk 0:00:18]} 43. Nd6 {[%clk 0:01:47]}  Ne6 {[%clk 0:00:18]} 44. Bf5 {[%clk 0:01:34]}  Rh1+ {[%clk 0:00:53]} 45. Kg2 {[%clk 0:01:34]}  Rd1 {[%clk 0:00:53]} 46. Bxe6 {[%clk 0:01:34]}  Rxd6 {[%clk 0:00:53]} 47. Bc8 {[%clk 0:01:34]}  b6 {[%clk 0:00:53]} 48. Bb7 {[%clk 0:01:34]}  f6 {[%clk 0:00:53]} 49. Rb2 {[%clk 0:01:34]}  c5 {[%clk 0:00:53]} 50. Bd5 {[%clk 0:01:34]}  g5 {[%clk 0:00:53]} 51. Kf3 {[%clk 0:01:34]}  Kg7 {[%clk 0:00:53]} 52. Kg4 {[%clk 0:01:34]}  Kg6 {[%clk 0:00:53]} 53. Be4+ {[%clk 0:01:14]}  Kg7 {[%clk 0:00:53]} 54. Kf5 {[%clk 0:01:14]}  h5 {[%clk 0:00:53]} 55. Bd5 {[%clk 0:01:14]}  h4 {[%clk 0:00:53]} 56. f4 {[%clk 0:01:14]}  Kh6 {[%clk 0:00:53]} 57. Rg2 {[%clk 0:01:14]}  Rd8 {[%clk 0:00:53]} 58. fxg5+ {[%clk 0:01:14]}  fxg5 {[%clk 0:00:53]} 59. Rxg5 {[%clk 0:01:14]}  Rf8+ {[%clk 0:00:53]} 60. Kg4 {[%clk 0:01:14]}  Rf1 {[%clk 0:00:53]} 61. Re5 {[%clk 0:01:14]}  Ra1 {[%clk 0:00:53]} 62. Re6+ {[%clk 0:01:14]}  Kg7 {[%clk 0:00:53]} 63. Bc6 {[%clk 0:01:14]}  Kf7 {[%clk 0:00:53]} 64. Rh6 {[%clk 0:01:14]}  Kg7 {[%clk 0:00:53]} 65. Rd6 {[%clk 0:01:14]} 1-0


[Site "http://www.Chess.com"]

[Event "FIDE World Rapid Chess Championship 2021"]
[White "Gabuzyan, Hovhannes"]
[Black "Van Foreest, Lucas"]
[WhiteFideId "13303732"]
[BlackFideId "1039792"]
[WhiteElo "2535"]
[BlackElo "2374"]
[Result "1-0"]
[Round "10"]
[TimeControl "900+10"]
[Date "2021.12.28"]
[WhiteClock "0:07:55"]
[BlackClock "0:05:02"]

1. Nf3 {[%clk 0:15:00]}  d5 {[%clk 0:15:00]} 2. g3 {[%clk 0:15:00]}  Nf6 {[%clk 0:15:00]} 3. Bg2 {[%clk 0:15:00]}  e6 {[%clk 0:15:00]} 4. O-O {[%clk 0:15:00]}  Be7 {[%clk 0:15:00]} 5. d3 {[%clk 0:15:00]}  O-O {[%clk 0:15:39]} 6. Nbd2 {[%clk 0:15:31]}  c5 {[%clk 0:15:39]} 7. e4 {[%clk 0:15:31]}  Nc6 {[%clk 0:15:39]} 8. Re1 {[%clk 0:15:31]}  h6 {[%clk 0:15:39]} 9. b3 {[%clk 0:15:31]}  Qc7 {[%clk 0:15:39]} 10. Bb2 {[%clk 0:15:31]}  d4 {[%clk 0:15:39]} 11. Nh4 {[%clk 0:15:31]}  g5 {[%clk 0:15:39]} 12. Nhf3 {[%clk 0:15:31]}  e5 {[%clk 0:15:39]} 13. h4 {[%clk 0:15:31]}  Ne8 {[%clk 0:15:28]} 14. Bc1 {[%clk 0:14:08]}  Be6 {[%clk 0:15:28]} 15. Nh2 {[%clk 0:14:08]}  Ng7 {[%clk 0:15:28]} 16. hxg5 {[%clk 0:14:08]}  hxg5 {[%clk 0:15:28]} 17. Bf3 {[%clk 0:14:08]}  Qd7 {[%clk 0:15:28]} 18. Bg4 {[%clk 0:14:08]}  f6 {[%clk 0:15:28]} 19. a3 {[%clk 0:14:08]}  Kf7 {[%clk 0:15:28]} 20. Bxe6+ {[%clk 0:13:29]}  Qxe6 {[%clk 0:14:46]} 21. Qg4 {[%clk 0:13:29]}  Rh8 {[%clk 0:14:46]} 22. Ndf3 {[%clk 0:13:29]}  Qxg4 {[%clk 0:14:46]} 23. Nxg4 {[%clk 0:13:29]}  b5 {[%clk 0:14:46]} 24. a4 {[%clk 0:13:29]}  Nb4 {[%clk 0:13:56]} 25. Re2 {[%clk 0:13:11]}  a6 {[%clk 0:13:56]} 26. Ba3 {[%clk 0:13:11]}  Nc6 {[%clk 0:13:56]} 27. Nd2 {[%clk 0:13:11]}  Ne6 {[%clk 0:13:56]} 28. Kg2 {[%clk 0:13:11]}  Bf8 {[%clk 0:13:56]} 29. Ree1 {[%clk 0:13:11]}  Bg7 {[%clk 0:13:56]} 30. Ra2 {[%clk 0:13:11]}  Rhc8 {[%clk 0:13:56]} 31. Rea1 {[%clk 0:13:11]}  Rab8 {[%clk 0:13:56]} 32. Nh2 {[%clk 0:13:22]}  Rc7 {[%clk 0:12:50]} 33. Nhf3 {[%clk 0:13:22]}  Ne7 {[%clk 0:12:50]} 34. Kh3 {[%clk 0:13:22]}  Rh8+ {[%clk 0:12:50]} 35. Kg2 {[%clk 0:13:22]}  Rb8 {[%clk 0:12:50]} 36. Kh3 {[%clk 0:13:22]}  Kg6 {[%clk 0:12:50]} 37. Kg4 {[%clk 0:12:16]}  Ng8 {[%clk 0:12:09]} 38. Ne1 {[%clk 0:12:16]}  Nh6+ {[%clk 0:12:09]} 39. Kf3 {[%clk 0:12:16]}  Nf7 {[%clk 0:12:09]} 40. axb5 {[%clk 0:12:16]}  axb5 {[%clk 0:12:09]} 41. Bb2 {[%clk 0:12:16]}  Rh8 {[%clk 0:12:09]} 42. Ra6 {[%clk 0:12:16]}  Re7 {[%clk 0:11:58]} 43. Rb6 {[%clk 0:11:36]}  b4 {[%clk 0:11:58]} 44. Nc4 {[%clk 0:11:36]}  Rh2 {[%clk 0:11:58]} 45. Bc1 {[%clk 0:11:36]}  g4+ {[%clk 0:10:12]} 46. Kxg4 {[%clk 0:11:05]}  Rxf2 {[%clk 0:10:12]} 47. Nf3 {[%clk 0:11:05]}  Kh7 {[%clk 0:10:12]} 48. Nh4 {[%clk 0:11:05]}  Re8 {[%clk 0:10:12]} 49. Ra7 {[%clk 0:11:05]}  Ned8 {[%clk 0:08:33]} 50. Nf5 {[%clk 0:10:55]}  Rg8 {[%clk 0:08:33]} 51. Kh3 {[%clk 0:10:55]}  Rh8 {[%clk 0:08:33]} 52. Ncd6 {[%clk 0:09:12]}  Bf8 {[%clk 0:08:14]} 53. Nxf7 {[%clk 0:08:35]}  Nxf7 {[%clk 0:08:14]} 54. Rxf6 {[%clk 0:07:55]}  Kg8+ {[%clk 0:05:02]} 55. Kg4 {[%clk 0:07:55]} 1-0


[Site "http://www.Chess.com"]

[Event "FIDE World Rapid Chess Championship 2021"]
[White "Pichot, Alan"]
[Black "Szpar, Milosz"]
[WhiteFideId "110973"]
[BlackFideId "1184989"]
[WhiteElo "2523"]
[BlackElo "2315"]
[Result "1-0"]
[Round "10"]
[TimeControl "900+10"]
[Date "2021.12.28"]
[WhiteClock "0:02:28"]
[BlackClock "0:00:28"]

1. e4 {[%clk 0:15:00]}  c5 {[%clk 0:15:00]} 2. Nf3 {[%clk 0:15:00]}  e6 {[%clk 0:14:16]} 3. d4 {[%clk 0:15:59]}  cxd4 {[%clk 0:14:16]} 4. Nxd4 {[%clk 0:15:59]}  Nf6 {[%clk 0:14:16]} 5. Nc3 {[%clk 0:15:59]}  Nc6 {[%clk 0:14:16]} 6. Be2 {[%clk 0:15:59]}  d6 {[%clk 0:14:16]} 7. Be3 {[%clk 0:15:59]}  Be7 {[%clk 0:14:16]} 8. Qd3 {[%clk 0:15:59]}  O-O {[%clk 0:14:16]} 9. O-O-O {[%clk 0:15:59]}  Ne5 {[%clk 0:12:47]} 10. Qd2 {[%clk 0:15:41]}  Neg4 {[%clk 0:12:47]} 11. Kb1 {[%clk 0:15:41]}  Bd7 {[%clk 0:10:51]} 12. f4 {[%clk 0:10:50]}  Nxe3 {[%clk 0:10:51]} 13. Qxe3 {[%clk 0:10:50]}  Bc6 {[%clk 0:08:51]} 14. g4 {[%clk 0:10:58]}  Qb6 {[%clk 0:08:51]} 15. g5 {[%clk 0:08:43]}  Nd7 {[%clk 0:08:26]} 16. Qd2 {[%clk 0:08:43]}  Nc5 {[%clk 0:08:26]} 17. Bf3 {[%clk 0:08:43]}  Rfe8 {[%clk 0:06:28]} 18. h4 {[%clk 0:08:42]}  Bf8 {[%clk 0:06:28]} 19. h5 {[%clk 0:07:39]}  e5 {[%clk 0:04:52]} 20. Nxc6 {[%clk 0:07:39]}  bxc6 {[%clk 0:04:52]} 21. g6 {[%clk 0:07:39]}  Rab8 {[%clk 0:04:15]} 22. b3 {[%clk 0:06:14]}  Ne6 {[%clk 0:04:15]} 23. Ne2 {[%clk 0:06:21]}  h6 {[%clk 0:01:21]} 24. Bg4 {[%clk 0:03:49]}  fxg6 {[%clk 0:01:21]} 25. hxg6 {[%clk 0:03:49]}  Qb4 {[%clk 0:01:21]} 26. Qe3 {[%clk 0:03:49]}  Nc5 {[%clk 0:01:21]} 27. fxe5 {[%clk 0:02:28]}  Nxe4 {[%clk 0:00:28]} 28. Rd4 {[%clk 0:02:28]} 1-0


[Site "http://www.Chess.com"]

[Event "FIDE World Rapid Chess Championship 2021"]
[White "Teclaf, Pawel"]
[Black "Murzin, Volodar"]
[WhiteFideId "1185934"]
[BlackFideId "44155573"]
[WhiteElo "2345"]
[BlackElo "2523"]
[Result "0-1"]
[Round "10"]
[TimeControl "900+10"]
[Date "2021.12.28"]
[WhiteClock "0:00:05"]
[BlackClock "0:00:43"]

1. e4 {[%clk 0:15:00]}  c6 {[%clk 0:15:00]} 2. Nf3 {[%clk 0:15:00]}  d5 {[%clk 0:15:00]} 3. d3 {[%clk 0:15:00]}  g6 {[%clk 0:15:00]} 4. Nbd2 {[%clk 0:15:55]}  Bg7 {[%clk 0:15:49]} 5. Be2 {[%clk 0:15:55]}  e5 {[%clk 0:15:49]} 6. O-O {[%clk 0:15:55]}  Ne7 {[%clk 0:15:49]} 7. b4 {[%clk 0:15:55]}  O-O {[%clk 0:12:26]} 8. a4 {[%clk 0:15:29]}  a5 {[%clk 0:12:26]} 9. bxa5 {[%clk 0:15:29]}  Rxa5 {[%clk 0:10:42]} 10. Nb3 {[%clk 0:12:13]}  Ra8 {[%clk 0:09:29]} 11. Re1 {[%clk 0:12:13]}  Qc7 {[%clk 0:09:29]} 12. Bb2 {[%clk 0:10:27]}  Rd8 {[%clk 0:08:48]} 13. Qc1 {[%clk 0:10:27]}  Na6 {[%clk 0:04:42]} 14. Bf1 {[%clk 0:09:01]}  Bg4 {[%clk 0:02:49]} 15. Nfd2 {[%clk 0:04:51]}  Be6 {[%clk 0:02:49]} 16. d4 {[%clk 0:02:49]}  dxe4 {[%clk 0:02:27]} 17. dxe5 {[%clk 0:02:49]}  Bh6 {[%clk 0:01:20]} 18. Nd4 {[%clk 0:01:28]}  Qb6 {[%clk 0:00:17]} 19. a5 {[%clk 0:00:12]}  Qa7 {[%clk 0:00:17]} 20. Bxa6 {[%clk 0:00:12]}  bxa6 {[%clk 0:00:17]} 21. Rxe4 {[%clk 0:00:12]}  c5 {[%clk 0:00:17]} 22. N4f3 {[%clk 0:00:12]}  Qd7 {[%clk 0:00:17]} 23. Bc3 {[%clk 0:00:12]}  Nd5 {[%clk 0:00:17]} 24. Bb2 {[%clk 0:00:12]}  Nb4 {[%clk 0:00:17]} 25. Bc3 {[%clk 0:00:12]}  Na2 {[%clk 0:00:17]} 26. Rxa2 {[%clk 0:00:09]}  Bxa2 {[%clk 0:00:55]} 27. Rh4 {[%clk 0:00:09]}  Bg7 {[%clk 0:00:55]} 28. h3 {[%clk 0:00:09]}  Bd5 {[%clk 0:00:55]} 29. Qa1 {[%clk 0:00:09]}  Bxf3 {[%clk 0:00:55]} 30. gxf3 {[%clk 0:00:09]}  Qf5 {[%clk 0:00:55]} 31. e6 {[%clk 0:00:05]}  Rxd2 {[%clk 0:00:43]} 32. Bxg7 {[%clk 0:00:05]}  Qxf3 {[%clk 0:00:43]} 0-1


[Site "http://www.Chess.com"]